bitfinex-derivatives/quotes_SOLF0:USTF0_20241215
["timestamp","ask_amount","ask_price","bid_price","bid_amount"]
[1734248147087,13.11499292,216.88,216.74,10.14059292]
[1734248147386,2.3062,216.85,216.79,2.3067]
[1734248147589,2.3062,216.85,216.77,10.14059292]
[1734248147892,4.726,216.87,216.8,2.3066]
[1734248148788,2.306,216.87,216.8,2.3066]
[1734248148987,2.42,216.86,216.8,2.3066]
[1734248149193,2.42,216.85,216.76,2.307]
[1734248149588,2.42,216.85,216.74,10.14059292]
[1734248149893,12.56059292,216.85,216.71,10.14059292]
[1734248150289,12.56059292,216.85,216.75,5.65147842]
[1734248150585,12.56059292,216.85,216.68,2.9998]
[1734248150787,10.14059292,216.82,216.7,5.5191214]
[1734248152498,1.5354,216.84,216.7,5.5191214]
[1734248152791,10.14059292,216.83,216.7,5.5191214]
[1734248152992,2.3069,216.77,216.7,5.5191214]
[1734248153189,4.7269,216.77,216.7,5.5191214]
[1734248153396,2.42,216.77,216.7,5.5191214]
[1734248153889,2.3071,216.76,216.7,7.8267214]
[1734248154089,2.42,216.77,216.65,10.14059292]
[1734248154691,12.56059292,216.77,216.65,10.14059292]
[1734248154889,1.4203,216.76,216.65,10.14059292]
[1734248155194,10.14059292,216.74,216.62,10.14059292]
[1734248155390,10.14059292,216.74,216.6,2.9545]
[1734248155587,2.308,216.67,216.61,2.3086]
[1734248156389,2.3081,216.66,216.6,1.4804]
[1734248157498,2.3083,216.64,216.59,10.14059292]
[1734248158193,2.3083,216.64,216.6,5.5788769]
[1734248160391,2.3085,216.63,216.59,10.14059292]
[1734248161195,2.42,216.63,216.52,10.14059292]
[1734248161690,2.3092,216.56,216.5,3.8162]
[1734248161996,4.7292,216.56,216.5,3.8162]
[1734248162496,4.7292,216.56,216.52,5.43967193]
[1734248162898,2.42,216.56,216.49,11.61469292]
[1734248163705,2.42,216.56,216.5,5.54553879]
[1734248164597,2.4,216.6,216.5,5.54553879]
[1734248164992,2.3091,216.57,216.5,5.54553879]
[1734248165194,2.4,216.6,216.5,5.54553879]
[1734248165395,1.4955,216.59,216.46,11.64759292]
[1734248165693,2.9876,216.59,216.46,11.64759292]
[1734248166501,5.55773288,216.69,216.52,10.14059292]
[1734248166502,2.4,216.58,216.52,10.14059292]
[1734248166693,2.4,216.58,216.52,12.45019292]
[1734248167201,2.4,216.58,216.52,2.3096]
[1734248167497,2.4,216.58,216.49,10.14059292]
[1734248167498,4.709,216.58,216.49,10.14059292]
[1734248168698,4.709,216.58,216.52,2.3096]
[1734248168899,2.3092,216.56,216.49,10.14059292]
[1734248169102,2.4,216.58,216.48,5.52656201]
[1734248169300,2.4,216.58,216.49,2.3099]
[1734248169702,2.3093,216.55,216.48,5.52656201]
[1734248170000,2.3093,216.55,216.48,7.83656201]
[1734248170197,2.4,216.58,216.48,7.83656201]
[1734248170395,2.3094,216.54,216.48,7.83656201]
[1734248170590,2.4,216.58,216.48,5.52656201]
[1734248171501,2.4,216.58,216.49,10.14059292]
[1734248171799,2.4,216.58,216.48,5.52656201]
[1734248172101,2.3096,216.52,216.48,5.52656201]
[1734248172296,4.7096,216.52,216.48,5.52656201]
[1734248172703,2.4,216.52,216.48,5.52656201]
[1734248173202,2.4,216.52,216.48,7.83656201]
[1734248173994,2.4,216.52,216.48,5.52656201]
[1734248174197,2.4,216.52,216.43,11.55099292]
[1734248174406,2.4,216.52,216.43,1.4104]
[1734248174599,2.3097,216.51,216.46,2.3102]
[1734248174800,2.4,216.52,216.46,2.3102]
[1734248175401,2.4,216.52,216.47,5.40916337]
[1734248176105,2.4,216.52,216.48,2.31]
[1734248176807,2.4,216.52,216.49,2.3099]
[1734248177108,2.4,216.54,216.47,5.40916337]
[1734248177301,2.4,216.54,216.47,6.86906337]
[1734248177501,2.4,216.54,216.48,2.31]
[1734248177704,13.84,216.81,216.52,10.14059292]
[1734248177897,12.54059292,216.68,216.58,2.3089]
[1734248178710,2.4,216.67,216.58,2.3089]
[1734248179006,2.4,216.67,216.56,10.14059292]
[1734248179201,10.14059292,216.65,216.53,11.57799292]
[1734248179410,10.14059292,216.65,216.53,1.4374]
[1734248179605,10.14059292,216.65,216.5,10.14059292]
[1734248180610,10.14059292,216.65,216.52,2.3096]
[1734248181106,2.3091,216.57,216.52,2.3096]
[1734248181304,2.4,216.59,216.52,2.3096]
[1734248181500,2.4,216.58,216.52,2.3096]
[1734248182006,2.4,216.58,216.53,2.3095]
[1734248184708,2.3088,216.6,216.54,2.3093]
[1734248184905,2.4,216.64,216.53,10.14059292]
[1734248185313,2.3083,216.64,216.56,2.3091]
[1734248185612,4.7083,216.64,216.53,10.14059292]
[1734248186315,4.7084,216.64,216.57,2.309]
[1734248186608,2.4,216.64,216.53,10.14059292]
[1734248186812,2.3084,216.63,216.56,2.3092]
[1734248187006,2.3084,216.63,216.53,10.14059292]
[1734248187804,2.3084,216.63,216.57,2.3091]
[1734248188510,11.64879292,216.68,216.53,10.14059292]
[1734248188511,11.64879292,216.68,216.54,2.4]
[1734248188708,2.4,216.67,216.58,5.48869624]
[1734248189011,2.4,216.67,216.55,1.4399]
[1734248190514,2.3086,216.62,216.56,2.3091]
[1734248190909,2.4,216.67,216.53,10.14059292]
[1734248191107,10.14059292,216.65,216.5,1.5145]
[1734248191408,10.14059292,216.62,216.5,1.5145]
[1734248191611,10.14059292,216.62,216.5,3.8242]
[1734248191612,2.3092,216.57,216.5,3.8242]
[1734248191811,2.3092,216.57,216.5,1.5145]
[1734248192212,2.3092,216.57,216.51,2.3096]
[1734248192511,2.3092,216.57,216.5,1.5145]
[1734248193719,2.3092,216.57,216.52,2.3096]
[1734248193908,2.309,216.58,216.5,1.5145]
[1734248194113,2.4,216.61,216.51,2.3097]
[1734248194515,2.309,216.58,216.5,1.5145]
[1734248195316,2.309,216.58,216.51,2.3096]
[1734248196016,2.309,216.58,216.52,2.3096]
[1734248197417,10.14059292,216.6,216.48,11.58839292]
[1734248197612,10.14059292,216.6,216.48,1.4478]
[1734248197920,1.4176,216.59,216.48,1.4478]
[1734248198112,2.3092,216.56,216.48,3.7578]
[1734248198412,2.4,216.55,216.48,3.7578]
[1734248198815,2.4,216.55,216.47,5.40916337]
[1734248199320,2.3097,216.52,216.47,5.40916337]
[1734248199520,2.4,216.55,216.49,2.3099]
[1734248200712,2.3095,216.54,216.49,2.3099]
[1734248201916,10.14059292,216.63,216.48,10.14059292]
[1734248202119,2.4,216.62,216.51,10.14059292]
[1734248203422,2.3089,216.59,216.51,10.14059292]
[1734248204123,2.3089,216.59,216.53,2.3095]
[1734248204323,2.309,216.58,216.53,2.3095]
[1734248204520,2.309,216.58,216.51,10.14059292]
[1734248204720,2.4,216.62,216.51,10.14059292]
[1734248204920,2.3095,216.53,216.48,10.14059292]
[1734248205115,10.14059292,216.61,216.48,10.14059292]
[1734248205116,2.4,216.55,216.48,10.14059292]
[1734248205430,2.3097,216.51,216.47,5.40916337]
[1734248206322,2.3098,216.5,216.47,5.40916337]
[1734248206530,2.3098,216.5,216.44,3.7879]
[1734248206531,12.54059292,216.55,216.44,1.4775]
[1734248206722,12.54059292,216.55,216.43,1.5055]
[1734248206923,2.3097,216.52,216.43,1.5055]
[1734248207221,12.54059292,216.55,216.44,5.63739006]
[1734248207422,2.31,216.49,216.44,5.63739006]
[1734248207727,4.71,216.49,216.44,5.63739006]
[1734248208121,2.4,216.49,216.44,5.63739006]
[1734248208325,2.3101,216.48,216.43,1.5055]
[1734248208531,2.4,216.49,216.43,1.5055]
[1734248208826,2.4,216.49,216.41,10.14059292]
[1734248209028,2.3103,216.46,216.41,15.55115637]
[1734248209224,2.4,216.49,216.41,15.55115637]
[1734248209625,2.3101,216.48,216.41,15.55115637]
[1734248210421,2.3102,216.47,216.41,17.86195637]
[1734248211324,4.71,216.49,216.42,2.3107]
[1734248211529,2.4,216.49,216.41,5.41056345]
[1734248212621,2.3101,216.48,216.42,2.3107]
[1734248214232,2.3104,216.45,216.41,5.41056345]
[1734248216541,2.4,216.49,216.39,0.49032]
[1734248217328,2.3103,216.46,216.4,2.3108]
[1734248218332,10.14059292,216.52,216.39,0.49032]
[1734248218536,2.4,216.51,216.39,6.11232886]
[1734248218834,2.4,216.51,216.39,0.49032]
[1734248219029,10.14059292,216.55,216.41,10.14059292]
[1734248219235,2.4,216.54,216.41,10.14059292]
[1734248219935,2.3097,216.52,216.46,2.3102]
[1734248220137,2.4,216.54,216.46,2.3102]
[1734248220334,2.4,216.54,216.39,2.4]
[1734248220533,10.14059292,216.53,216.41,10.14059292]
[1734248220740,2.4,216.54,216.41,10.14059292]
[1734248221238,2.3097,216.51,216.41,10.14059292]
[1734248221436,2.4,216.54,216.41,10.14059292]
[1734248222940,2.4,216.54,216.44,2.3104]
[1734248223241,1.5304,216.57,216.47,10.14059292]
[1734248223541,2.3091,216.57,216.52,2.3096]
[1734248224637,2.38,216.59,216.5,10.14059292]
[1734248226134,2.38,216.59,216.47,10.14059292]
[1734248226339,2.38,216.59,216.46,1.5237]
[1734248226540,5.3755,216.59,216.46,1.5237]
[1734248226736,2.3097,216.52,216.47,2.3101]
[1734248226941,4.6897,216.52,216.47,2.3101]
[1734248227547,2.3098,216.5,216.46,1.5237]
[1734248227851,2.3098,216.5,216.45,2.3103]
[1734248228046,2.38,216.52,216.47,2.3101]
[1734248228942,2.3098,216.51,216.45,2.3103]
[1734248229849,2.3098,216.5,216.45,2.3103]
[1734248230746,2.38,216.51,216.41,10.14059292]
[1734248230945,2.9955,216.59,216.41,10.14059292]
[1734248231252,2.3098,216.51,216.41,10.14059292]
[1734248231455,2.38,216.5,216.41,10.14059292]
[1734248231747,2.38,216.53,216.47,10.14059292]
[1734248231953,2.38,216.55,216.5,10.14059292]
[1734248232252,2.38,216.56,216.51,2.3096]
[1734248232654,2.3091,216.57,216.48,10.14059292]
[1734248232857,2.38,216.6,216.54,10.14059292]
[1734248233058,2.38,216.62,216.54,10.14059292]
[1734248233259,2.38,216.63,216.58,2.309]
[1734248233957,2.38,216.64,216.57,10.14059292]
[1734248234262,2.38,216.64,216.6,2.3087]
[1734248234752,2.38,216.64,216.57,10.14059292]
[1734248235059,2.38,216.64,216.54,10.14059292]
[1734248235264,2.38,216.64,216.57,2.3091]
[1734248236257,2.38,216.64,216.55,2.3092]
[1734248236258,2.3085,216.63,216.55,2.3092]
[1734248236455,2.38,216.64,216.56,5.62259112]
[1734248237857,2.3087,216.61,216.56,5.62259112]
[1734248238654,2.38,216.64,216.56,5.62259112]
[1734248238856,10.14059292,216.63,216.51,5.67741019]
[1734248239056,10.14059292,216.6,216.49,2.8328]
[1734248239262,2.3092,216.56,216.49,2.8328]
[1734248239562,2.38,216.59,216.49,2.8328]
[1734248240153,2.38,216.59,216.51,10.14059292]
[1734248241562,4.6889,216.59,216.52,2.3096]
[1734248243267,2.309,216.58,216.52,2.3096]
[1734248243959,2.3091,216.58,216.51,2.3097]
[1734248244565,2.3091,216.58,216.49,2.8328]
[1734248244761,2.3091,216.58,216.52,2.3096]
[1734248245769,10.14059292,216.63,216.51,10.14059292]
[1734248245960,2.3089,216.6,216.54,2.3094]
[1734248246563,2.38,216.6,216.55,2.3093]
[1734248246970,2.38,216.61,216.55,2.3093]
[1734248247559,4.6887,216.61,216.55,2.3093]
[1734248247759,2.38,216.62,216.56,2.3092]
[1734248248164,4.6886,216.62,216.57,2.3091]
[1734248248370,2.38,216.62,216.51,10.14059292]
[1734248248970,10.14059292,216.6,216.48,5.62363003]
[1734248249671,10.14059292,216.6,216.48,7.93363003]
[1734248250062,2.3097,216.52,216.48,5.62363003]
[1734248250766,2.3098,216.51,216.44,2.987]
[1734248251069,12.52059292,216.54,216.44,2.987]
[1734248251265,2.3104,216.45,216.42,0.41698]
[1734248251475,4.7104,216.45,216.42,0.41698]
[1734248252064,2.4,216.45,216.42,0.41698]
[1734248252771,2.3105,216.44,216.42,0.41698]
[1734248253370,2.4,216.45,216.42,0.41698]
[1734248253974,4.7104,216.45,216.42,0.41698]
[1734248254476,2.4,216.45,216.42,0.41698]
[1734248254772,2.3105,216.44,216.42,0.41698]
[1734248257772,2.4,216.43,216.42,0.41698]
[1734248257972,4.7106,216.43,216.42,0.41698]
[1734248258873,4.7106,216.43,216.3,3.9076]
[1734248258874,2.4,216.43,216.3,3.9076]
[1734248259068,2.311,216.4,216.33,10.14059292]
[1734248259469,2.4,216.43,216.33,10.14059292]
[1734248259666,2.3108,216.41,216.35,2.3114]
[1734248260876,4.7107,216.43,216.36,15.77999175]
[1734248261075,2.4,216.44,216.36,15.77999175]
[1734248261472,4.7105,216.44,216.36,15.77999175]
[1734248261672,2.4,216.44,216.36,15.77999175]
[1734248261975,2.4,216.44,216.35,2.3114]
[1734248262169,2.4,216.44,216.3,10.14059292]
[1734248262575,2.3109,216.4,216.32,2.3118]
[1734248262772,2.4,216.39,216.32,2.3118]
[1734248262966,2.4,216.38,216.32,2.3118]
[1734248263166,2.4,216.37,216.32,2.3118]
[1734248263375,2.4,216.36,216.32,2.3118]
[1734248264272,2.4,216.36,216.34,5.65849338]
[1734248265075,2.4,216.38,216.34,5.65849338]
[1734248266678,2.4,216.38,216.3,10.14059292]
[1734248267079,2.3113,216.37,216.31,2.3118]
[1734248267679,2.4,216.38,216.3,10.14059292]
[1734248267979,4.7111,216.38,216.32,2.3117]
[1734248268381,2.3113,216.37,216.32,2.3117]
[1734248269078,2.3113,216.37,216.33,5.65764514]
[1734248269377,2.4,216.38,216.34,2.3116]
[1734248269573,2.4,216.38,216.33,5.65764514]
[1734248269978,2.4,216.38,216.35,2.3114]
[1734248270482,2.3113,216.37,216.31,2.3118]
[1734248270681,2.4,216.38,216.28,10.14059292]
[1734248270876,1.4879,216.43,216.32,5.68257185]
[1734248271181,2.4,216.42,216.36,2.3113]
[1734248271681,4.7107,216.42,216.36,2.3113]
[1734248272472,2.4,216.42,216.34,2.3115]
[1734248273482,2.4,216.42,216.33,2.3117]
[1734248273779,2.4,216.42,216.32,5.68257185]
[1734248274083,2.4,216.42,216.32,7.99437185]
[1734248274084,2.3112,216.38,216.32,7.99437185]
[1734248274284,2.4,216.37,216.32,5.68257185]
[1734248274485,4.7114,216.36,216.32,5.68257185]
[1734248276982,2.4,216.36,216.3,2.312]
[1734248277177,2.3115,216.35,216.28,10.14059292]
[1734248277373,2.3115,216.35,216.28,12.45269292]
[1734248277577,2.4,216.36,216.28,5.44752244]
[1734248277775,2.4,216.36,216.23,1.4615]
[1734248277776,2.4,216.36,216.23,10.14059292]
[1734248278483,2.3119,216.31,216.26,2.3124]
[1734248278678,2.4,216.3,216.23,10.14059292]
[1734248279177,1.4434,216.4,216.29,6.50290425]
[1734248279178,2.4,216.31,216.29,6.50290425]
[1734248279385,2.4,216.32,216.29,6.50290425]
[1734248279687,2.4,216.33,216.29,6.50290425]
[1734248280182,6.50290425,216.36,216.29,6.50290425]
[1734248280380,2.9009,216.43,216.33,6.50290425]
[1734248280681,2.4,216.42,216.35,6.50290425]
[1734248281180,4.7108,216.42,216.35,2.3115]
[1734248281384,2.4,216.42,216.35,2.3115]
[1734248282386,2.4,216.42,216.32,10.15486108]
[1734248282583,2.38,216.42,216.32,10.15486108]
[1734248283286,3.7986,216.43,216.32,10.15486108]
[1734248283481,6.1786,216.43,216.32,10.15486108]
[1734248283885,2.3108,216.42,216.32,10.15486108]
[1734248284687,3.8679,216.43,216.32,10.15486108]
[1734248284889,3.8679,216.43,216.35,2.3114]
[1734248285184,3.8679,216.43,216.32,10.15486108]
[1734248286685,2.3107,216.42,216.36,2.3113]
[1734248287289,3.8679,216.43,216.34,2.3115]
[1734248287589,14.02276108,216.43,216.3,3.0073]
[1734248288585,2.3112,216.38,216.3,3.0073]
[1734248288788,2.38,216.38,216.3,3.0073]
[1734248289685,2.3113,216.37,216.32,2.3118]
[1734248289888,2.3113,216.37,216.3,1.5191]
[1734248290084,2.38,216.38,216.26,15.77887992]
[1734248290287,2.3116,216.34,216.26,15.77887992]
[1734248290482,2.38,216.38,216.29,10.15486108]
[1734248291287,2.38,216.38,216.29,12.53486108]
[1734248291884,2.38,216.38,216.29,18.92037602]
[1734248292184,4.6911,216.38,216.29,12.53486108]
[1734248292787,2.3114,216.36,216.29,12.53486108]
[1734248292988,2.38,216.38,216.27,6.38551494]
[1734248293185,2.3115,216.35,216.28,2.3121]
[1734248293392,2.38,216.38,216.28,2.3121]
[1734248293786,2.3117,216.34,216.28,2.3121]
[1734248293987,2.38,216.33,216.28,2.3121]
[1734248294682,4.6917,216.33,216.27,2.3123]
[1734248295081,4.6917,216.33,216.26,15.77887992]
[1734248295293,4.6917,216.33,216.26,18.09117992]
[1734248295489,4.6917,216.33,216.26,15.77887992]
[1734248296692,4.6917,216.33,216.27,2.3122]
[1734248297492,1.5147,216.39,216.26,15.77887992]
[1734248297692,2.38,216.38,216.26,15.77887992]
[1734248298684,2.3114,216.36,216.3,2.3119]
[1734248298889,2.38,216.38,216.26,15.77887992]
[1734248299393,2.38,216.38,216.27,2.3123]
[1734248299595,2.38,216.38,216.26,15.77887992]
[1734248300089,2.38,216.38,216.26,18.09127992]
[1734248300793,2.3118,216.32,216.27,2.3123]
[1734248300995,2.38,216.32,216.26,15.77887992]
[1734248301189,2.38,216.32,216.3,6.50239389]
[1734248301390,2.38,216.37,216.3,6.50239389]
[1734248301593,2.38,216.37,216.32,6.50239389]
[1734248302591,2.3112,216.38,216.34,6.50239389]
[1734248303398,2.3112,216.38,216.33,2.3116]
[1734248303601,2.38,216.39,216.26,5.62401884]
[1734248303602,8.88239389,216.39,216.26,5.62401884]
[1734248303791,8.81369389,216.37,216.31,2.3118]
[1734248303997,8.81369389,216.37,216.3,6.50239389]
[1734248303998,2.3113,216.37,216.3,6.50239389]
[1734248304398,2.3113,216.37,216.32,6.50239389]
[1734248304699,11.19349389,216.39,216.32,8.81409389]
[1734248304903,4.6911,216.39,216.32,6.50239389]
[1734248305200,2.3108,216.41,216.35,2.3114]
[1734248305400,2.38,216.4,216.35,2.3114]
[1734248305597,6.50239389,216.42,216.35,2.3114]
[1734248305798,2.38,216.41,216.35,2.3114]
[1734248305999,2.38,216.41,216.32,2.3118]
[1734248306000,2.3113,216.37,216.32,2.3118]
[1734248306195,2.3113,216.37,216.32,8.81419389]
[1734248306702,2.3113,216.37,216.32,6.50239389]
[1734248306897,2.3115,216.35,216.32,6.50239389]
[1734248307099,8.88239389,216.36,216.25,7.88481494]
[1734248307406,2.38,216.35,216.29,6.50239389]
[1734248308298,2.3116,216.34,216.29,6.50239389]
[1734248308500,2.3116,216.34,216.29,8.81449389]
[1734248308699,2.38,216.35,216.29,6.50239389]
[1734248308899,6.50239389,216.31,216.23,25.5419231]
[1734248309100,2.38,216.3,216.23,6.50239389]
[1734248309294,2.38,216.29,216.23,6.50239389]
[1734248309498,2.38,216.28,216.23,6.50239389]
[1734248309694,2.38,216.28,216.25,8.81489389]
[1734248309898,2.38,216.28,216.25,6.50239389]
[1734248310599,2.4,216.29,216.25,6.50239389]
[1734248311812,2.4,216.29,216.27,6.50239389]
[1734248312705,2.4,216.29,216.26,8.81479389]
[1734248313514,2.4,216.29,216.24,2.3126]
[1734248313711,2.4,216.29,216.24,8.81499389]
[1734248315114,2.4,216.29,216.26,6.50239389]
[1734248317017,2.4,216.3,216.28,6.50239389]
[1734248317614,2.4,216.3,216.26,2.3123]
[1734248317916,1.52,216.34,216.27,6.50239389]
[1734248317917,2.4,216.31,216.27,6.50239389]
[1734248318618,2.4,216.31,216.27,8.81469389]
[1734248319015,2.4,216.31,216.27,2.3123]
[1734248319217,2.4,216.31,216.27,8.81469389]
[1734248320118,2.4,216.3,216.27,6.50239389]
[1734248321321,2.4,216.3,216.22,5.58021114]
[1734248321322,1.531,216.44,216.29,6.50239389]
[1734248321511,6.50239389,216.37,216.31,6.50239389]
[1734248321715,2.4,216.36,216.31,6.50239389]
[1734248322312,2.3115,216.35,216.31,6.50239389]
[1734248322717,2.3115,216.35,216.3,2.312]
[1734248323419,2.4,216.34,216.3,2.312]
[1734248323930,2.4,216.34,216.29,8.81449389]
[1734248324112,2.4,216.34,216.29,6.50239389]
[1734248324313,6.50239389,216.33,216.25,1.5465]
[1734248324617,6.50239389,216.33,216.25,8.04889389]
[1734248324820,2.3121,216.3,216.25,8.04889389]
[1734248326920,6.50239389,216.33,216.25,8.04889389]
[1734248327123,6.50239389,216.33,216.25,1.5465]
[1734248327324,6.50239389,216.31,216.22,5.58021114]
[1734248327524,2.3126,216.25,216.17,9.30301494]
[1734248327720,4.7126,216.25,216.2,6.50239389]
[1734248328619,4.7126,216.25,216.21,5.62173561]
[1734248328824,2.3127,216.24,216.2,6.50239389]
[1734248333330,2.3127,216.24,216.2,12.16732898]
[1734248334625,2.3128,216.23,216.2,6.50239389]
[1734248334829,2.3128,216.23,216.17,2.9175]
[1734248335130,2.3128,216.23,216.2,6.50239389]
[1734248335929,2.3127,216.24,216.2,6.50239389]
[1734248336132,2.3127,216.24,216.17,5.2308]
[1734248336331,2.3127,216.24,216.2,6.50239389]
[1734248336527,2.4,216.25,216.16,0.38601]
[1734248336747,2.4,216.24,216.16,0.38601]
[1734248336927,8.90239389,216.23,216.16,9.20190389]
[1734248337122,5.52833697,216.3,216.18,6.50239389]
[1734248337123,2.3127,216.24,216.18,6.50239389]
[1734248337331,2.4,216.23,216.18,6.50239389]
[1734248338635,4.7128,216.23,216.18,6.50239389]
[1734248338833,4.7128,216.23,216.16,2.69951]
[1734248339028,4.7128,216.23,216.18,6.50239389]
[1734248339233,2.4,216.23,216.18,6.50239389]
[1734248339432,2.3129,216.22,216.16,0.38601]
[1734248339634,8.90239389,216.23,216.16,0.38601]
[1734248339932,2.4,216.23,216.16,6.88840389]
[1734248340237,2.4,216.23,216.16,0.38601]
[1734248340434,2.4,216.23,216.17,6.50239389]
[1734248340639,2.38,216.23,216.19,6.50239389]
[1734248341337,2.38,216.23,216.2,6.50239389]
[1734248341536,2.38,216.23,216.22,6.50239389]
[1734248341839,2.38,216.25,216.21,6.50239389]
[1734248342038,2.38,216.26,216.21,6.50239389]
[1734248343535,2.38,216.26,216.16,0.38601]
[1734248343734,2.38,216.26,216.21,6.50239389]
[1734248344739,4.6925,216.26,216.21,6.50239389]
[1734248345035,2.38,216.26,216.2,6.50239389]
[1734248345231,2.38,216.26,216.16,0.38601]
[1734248345232,6.50239389,216.24,216.16,0.38601]
[1734248345737,4.6928,216.23,216.17,6.50239389]
[1734248345938,2.38,216.23,216.17,6.50239389]
[1734248346140,2.38,216.23,216.16,0.38601]
[1734248346340,2.3133,216.18,216.16,0.38601]
[1734248346637,8.06429389,216.22,216.16,0.38601]
[1734248346840,2.38,216.18,216.16,0.38601]
[1734248348436,8.06429389,216.22,216.16,0.38601]
[1734248348633,2.38,216.21,216.16,0.38601]
[1734248348832,2.38,216.2,216.16,0.38601]
[1734248349039,4.6931,216.2,216.16,0.38601]
[1734248350634,2.38,216.2,216.16,0.38601]
[1734248351844,4.6931,216.2,216.16,0.38601]
[1734248353445,2.3134,216.17,216.16,0.38601]
[1734248355240,5.55332443,216.31,216.16,6.88840389]
[1734248355445,6.50239389,216.29,216.17,2.38]
[1734248355645,6.50239389,216.27,216.2,6.50239389]
[1734248356139,2.3127,216.24,216.2,6.50239389]
[1734248356338,2.38,216.26,216.18,6.50239389]
[1734248356946,2.3127,216.25,216.19,2.3131]
[1734248357141,2.38,216.26,216.16,0.38601]
[1734248357447,6.50239389,216.21,216.16,0.38601]
[1734248357643,2.38,216.2,216.16,0.38601]
[1734248359548,2.3132,216.19,216.16,0.38601]
[1734248361840,2.3134,216.17,216.16,0.38601]
[1734248362043,2.38,216.2,216.16,0.38601]
[1734248362547,2.3133,216.19,216.16,0.38601]
[1734248362944,2.3133,216.18,216.16,0.38601]
[1734248363148,2.38,216.2,216.16,0.38601]
[1734248364747,2.3134,216.17,216.16,0.38601]
[1734248365445,2.3139,216.13,216.1,6.50239389]
[1734248365945,2.38,216.15,216.1,6.50239389]
[1734248366147,4.6937,216.15,216.1,6.50239389]
[1734248366347,2.38,216.15,216.1,6.50239389]
[1734248367653,2.3137,216.14,216.1,6.50239389]
[1734248368553,2.38,216.15,216.08,7.90630477]
[1734248368554,8.88239389,216.15,216.08,5.59200477]
[1734248368753,2.38,216.15,216.02,1.5302]
[1734248368948,6.50239389,216.11,216.03,6.50239389]
[1734248369142,2.38,216.1,216.02,1.5302]
[1734248369350,2.38,216.11,216.02,7.00109836]
[1734248369552,1.5129,216.24,216.02,7.00109836]
[1734248369553,1.5129,216.24,216.05,6.50239389]
[1734248369745,1.5129,216.24,216.07,6.50239389]
[1734248369746,6.50239389,216.15,216.07,6.50239389]
[1734248369947,2.56,216.14,216.02,7.00109836]
[1734248370147,2.56,216.13,216.07,6.50239389]
[1734248370452,2.3139,216.12,216.07,6.50239389]
[1734248371053,2.3139,216.12,216.06,2.3145]
[1734248371247,2.3139,216.12,216.06,8.81689389]
[1734248371551,2.3139,216.12,216.06,6.50239389]
[1734248371753,6.50239389,216.11,216.04,6.50239389]
[1734248372052,6.50239389,216.1,216.02,8.03259389]
[1734248372450,2.3143,216.09,216.03,2.3148]
[1734248372949,2.3143,216.08,216.02,1.5302]
[1734248373153,2.3143,216.08,216.02,8.03259389]
[1734248374350,4.8743,216.08,216.02,1.5302]
[1734248374653,11.37669389,216.08,216.01,15.82096311]
[1734248375054,11.37669389,216.08,216.03,8.81719389]
[1734248375055,2.56,216.08,216.03,8.81719389]
[1734248375253,2.56,216.08,216.05,6.50239389]
[1734248375666,9.06239389,216.12,216.05,8.81699389]
[1734248375862,6.50239389,216.12,216.05,8.81699389]
[1734248376063,9.06239389,216.12,216.05,6.50239389]
[1734248376263,9.06239389,216.12,216.04,6.50239389]
[1734248376657,6.50239389,216.1,216.01,7.00346922]
[1734248376859,6.50239389,216.1,216.03,6.50239389]
[1734248377162,6.50239389,216.11,216.03,6.50239389]
[1734248377362,2.3141,216.1,216.05,2.3146]
[1734248377564,2.3141,216.1,216.03,6.50239389]
[1734248377765,2.3141,216.1,216.04,2.3147]
[1734248378160,4.874,216.12,216.03,6.50239389]